[Event "Torneo Nuevo Centro. Jornada 11"]
[Site "Chess.com"]
[Date "2020.08.28"]
[Round "8"]
[White "Alvarez Usina, Jordi"]
[Black "Hernández Tomás, Efrén"]
[Result "0-1"]
[WhiteElo "1259"]
[BlackElo "1138"]
[TimeControl "180+2"]
[EndTime "11:54:17 PDT"]
[Termination "Victoria de EfrenHT10 por tiempo"]

1. d4 {[%clk 0:03:01.9]} 1... d5 {[%clk 0:03:00.7]} 2. Bf4 {[%clk 0:02:59.9]}
2... Bf5 {[%clk 0:02:59]} 3. e3 {[%clk 0:02:59.9]} 3... Nf6 {[%clk 0:02:59.7]}
4. Bd3 {[%clk 0:02:59.5]} 4... e6 {[%clk 0:03:00.7]} 5. c3 {[%clk 0:02:59.5]}
5... Bxd3 {[%clk 0:03:01]} 6. Qxd3 {[%clk 0:02:59.5]} 6... Nc6 {[%clk
0:03:01.6]} 7. Nf3 {[%clk 0:02:59.9]} 7... Bd6 {[%clk 0:03:01.7]} 8. Ne5 {[%clk
0:02:59.2]} 8... Nxe5 {[%clk 0:03:01.4]} 9. dxe5 {[%clk 0:02:59.1]} 9... Nh5
{[%clk 0:02:55.9]} 10. exd6 {[%clk 0:02:57.6]} 10... Nxf4 {[%clk 0:02:56.8]} 11.
exf4 {[%clk 0:02:57.7]} 11... Qxd6 {[%clk 0:02:57.6]} 12. Qe3 {[%clk 0:02:55.1]}
12... Qc6 {[%clk 0:02:54.1]} 13. O-O {[%clk 0:02:52.4]} 13... Qb5 {[%clk
0:02:51.3]} 14. Nd2 {[%clk 0:02:52.3]} 14... Qxb2 {[%clk 0:02:51.3]} 15. Rfb1
{[%clk 0:02:43.7]} 15... Qc2 {[%clk 0:02:49.1]} 16. Rc1 {[%clk 0:02:40]} 16...
Qb2 {[%clk 0:02:49.3]} 17. Rcb1 {[%clk 0:02:25.1]} 17... Qc2 {[%clk 0:02:44.8]}
18. Rxb7 {[%clk 0:02:18.1]} 18... c6 {[%clk 0:02:35.5]} 19. Rab1 {[%clk
0:01:34.5]} 19... O-O {[%clk 0:02:33.4]} 20. h3 {[%clk 0:01:28.4]} 20... Qxa2
{[%clk 0:02:31.7]} 21. Nf3 {[%clk 0:01:28.5]} 21... Qc4 {[%clk 0:02:18.4]} 22.
Qe5 {[%clk 0:01:26.8]} 22... Qa6 {[%clk 0:02:07.7]} 23. Rb8 {[%clk 0:01:14.3]}
23... Raxb8 {[%clk 0:02:05.6]} 24. Rxb8 {[%clk 0:01:13.1]} 24... Qa1+ {[%clk
0:01:56.2]} 25. Kh2 {[%clk 0:01:12]} 25... Qa6 {[%clk 0:01:50.4]} 26. Ng1 {[%clk
0:00:19.6]} 26... Qf1 {[%clk 0:01:48.7]} 27. Rxf8+ {[%clk 0:00:14.6]} 27... Kxf8
{[%clk 0:01:48.8]} 28. Qd6+ {[%clk 0:00:12.8]} 28... Ke8 {[%clk 0:01:47.7]} 29.
Qxc6+ {[%clk 0:00:12.3]} 29... Ke7 {[%clk 0:01:45.1]} 30. Qc7+ {[%clk 0:00:12]}
30... Kf6 {[%clk 0:01:46.2]} 31. Qxa7 {[%clk 0:00:06.7]} 31... Qxf2 {[%clk
0:01:46.6]} 32. Qxf2 {[%clk 0:00:06.6]} 32... Kf5 {[%clk 0:01:46.5]} 33. Qh4
{[%clk 0:00:03.1]} 33... h6 {[%clk 0:01:44.2]} 0

[Event "Torneo Nuevo Centro. Jornada 11"]
[Site "Chess.com"]
[Date "2020.08.28"]
[Round "8"]
[White "Montesinos Diaz, Luis"]
[Black "Blanco Solaz, Ramón"]
[Result "1-0"]
[WhiteElo "1909"]
[BlackElo "1957"]
[TimeControl "180+2"]
[EndTime "11:54:24 PDT"]
[Termination "Victoria de Gwiso_06 por abandono"]

1. d4 {[%clk 0:03:01.9]} 1... Nf6 {[%clk 0:02:58.7]} 2. Nf3 {[%clk 0:02:58]}
2... g6 {[%clk 0:02:59.4]} 3. Bg5 {[%clk 0:02:56.7]} 3... Bg7 {[%clk 0:02:58.6]}
4. c3 {[%clk 0:02:55.9]} 4... h6 {[%clk 0:02:59.9]} 5. Bh4 {[%clk 0:02:56.5]}
5... d6 {[%clk 0:03:01.5]} 6. Nbd2 {[%clk 0:02:56.2]} 6... Bf5 {[%clk
0:03:03.1]} 7. Qb3 {[%clk 0:02:52.6]} 7... b6 {[%clk 0:03:00.5]} 8. Bxf6 {[%clk
0:02:34]} 8... Bxf6 {[%clk 0:02:58.8]} 9. e4 {[%clk 0:02:35.4]} 9... Be6 {[%clk
0:02:54]} 10. Bc4 {[%clk 0:02:34.2]} 10... Qd7 {[%clk 0:02:51.4]} 11. d5 {[%clk
0:02:28.4]} 11... Bg4 {[%clk 0:02:51.6]} 12. Bb5 {[%clk 0:02:28.4]} 12... c6
{[%clk 0:02:53]} 13. dxc6 {[%clk 0:02:29.5]} 13... Nxc6 {[%clk 0:02:54.2]} 14.
Nd4 {[%clk 0:02:28.4]} 14... Bxd4 {[%clk 0:02:54.4]} 15. cxd4 {[%clk 0:02:29.4]}
15... a6 {[%clk 0:02:48.3]} 16. Bc4 {[%clk 0:02:18]} 16... O-O {[%clk
0:02:25.1]} 17. Qe3 {[%clk 0:02:10.6]} 17... Nb4 {[%clk 0:01:51.6]} 18. Rc1
{[%clk 0:01:59.6]} 18... b5 {[%clk 0:01:38.2]} 19. Bb3 {[%clk 0:02:00.2]} 19...
Kh7 {[%clk 0:01:01.4]} 20. f3 {[%clk 0:02:00.3]} 20... Bh5 {[%clk 0:01:02.3]}
21. a3 {[%clk 0:01:58.7]} 21... Nc6 {[%clk 0:01:02.5]} 22. g4 {[%clk 0:01:59.2]}
22... Bxg4 {[%clk 0:01:03.7]} 23. fxg4 {[%clk 0:02:00.2]} 23... Qxg4 {[%clk
0:01:05.6]} 24. Rg1 {[%clk 0:01:53.9]} 24... Qh4+ {[%clk 0:01:03.9]} 25. Qg3
{[%clk 0:01:55.1]} 25... Qxg3+ {[%clk 0:01:03.3]} 26. Rxg3 {[%clk 0:01:55.3]}
26... Nxd4 {[%clk 0:01:05.2]} 27. Bd5 {[%clk 0:01:52.7]} 27... Rab8 {[%clk
0:01:03.9]} 28. Rc7 {[%clk 0:01:52.3]} 28... e6 {[%clk 0:01:03.9]} 29. Ba2
{[%clk 0:01:48.3]} 29... b4 {[%clk 0:01:01.2]} 30. Rd3 {[%clk 0:01:39.9]} 30...
Nc2+ {[%clk 0:00:58.6]} 31. Rxc2 {[%clk 0:01:39.2]} 31... a5 {[%clk 0:00:55.6]}
32. axb4 {[%clk 0:01:36.8]} 32... axb4 {[%clk 0:00:55.2]} 33. Rc7 {[%clk
0:01:37.4]} 33... Ra8 {[%clk 0:00:53]} 34. Bxe6 {[%clk 0:01:35.4]} 34... Ra1+
{[%clk 0:00:54.7]} 35. Ke2 {[%clk 0:01:36.5]} 35... Kg7 {[%clk 0:00:56.6]} 36.
Rxd6 {[%clk 0:01:35.6]} 36... Kf6 {[%clk 0:00:57.7]} 37. Bd5+ {[%clk 0:01:35.4]}
37... Ke5 {[%clk 0:00:59.4]} 38. Nc4+ {[%clk 0:01:34.7]} 38... Kd4 {[%clk
0:01:00.1]} 39. Bxf7+ {[%clk 0:01:33.3]} 39... Kxe4 {[%clk 0:01:01.8]} 40. Bxg6+
{[%clk 0:01:34.4]} 40... Kf4 {[%clk 0:00:59.8]} 41. Rd4+ {[%clk 0:01:34.7]}
41... Kg5 {[%clk 0:01:00.9]} 42. Bd3 {[%clk 0:01:29.3]} 42... Raf1 {[%clk
0:00:54.4]} 43. Rc5+ {[%clk 0:01:28.1]} 1

[Event "Torneo Nuevo Centro. Jornada 11"]
[Site "Chess.com"]
[Date "2020.08.28"]
[Round "8"]
[White "Lloret Ramis, Juan José"]
[Black "Gómez Alonso, Óscar"]
[Result "1-0"]
[WhiteElo "1980"]
[BlackElo "1798"]
[TimeControl "180+2"]
[EndTime "11:54:48 PDT"]
[Termination "Victoria de Amiplim por abandono"]

1. c4 {[%clk 0:03:01.9]} 1... Nf6 {[%clk 0:03:00.6]} 2. Nc3 {[%clk 0:03:01.6]}
2... c5 {[%clk 0:03:01.5]} 3. Nf3 {[%clk 0:03:01.6]} 3... Nc6 {[%clk 0:03:02.4]}
4. g3 {[%clk 0:03:02.7]} 4... e6 {[%clk 0:03:03.3]} 5. Bg2 {[%clk 0:03:03.3]}
5... g6 {[%clk 0:03:03.1]} 6. O-O {[%clk 0:03:02.1]} 6... Bg7 {[%clk 0:03:04.2]}
7. d4 {[%clk 0:03:03.3]} 7... cxd4 {[%clk 0:03:05]} 8. Nxd4 {[%clk 0:03:04.3]}
8... a6 {[%clk 0:03:04]} 9. Nxc6 {[%clk 0:02:53.6]} 9... bxc6 {[%clk 0:03:04.7]}
10. Bf4 {[%clk 0:02:53.6]} 10... O-O {[%clk 0:03:00.7]} 11. Bd6 {[%clk
0:02:53.3]} 11... Re8 {[%clk 0:02:59.3]} 12. Qd2 {[%clk 0:02:49.2]} 12... Bb7
{[%clk 0:02:58.3]} 13. Rfd1 {[%clk 0:02:43]} 13... e5 {[%clk 0:02:37.8]} 14. c5
{[%clk 0:02:38.2]} 14... a5 {[%clk 0:02:28.9]} 15. Na4 {[%clk 0:02:24.3]} 15...
e4 {[%clk 0:02:25]} 16. e3 {[%clk 0:02:15.6]} 16... Nd5 {[%clk 0:02:25.5]} 17.
Nc3 {[%clk 0:01:40.4]} 17... Nxc3 {[%clk 0:02:25.4]} 18. bxc3 {[%clk 0:01:40.6]}
18... f5 {[%clk 0:02:18.9]} 19. Bf1 {[%clk 0:01:33.1]} 19... Qf6 {[%clk
0:02:04.1]} 20. Bc4+ {[%clk 0:01:28.9]} 20... Kh8 {[%clk 0:02:02.9]} 21. Rdc1
{[%clk 0:01:22]} 21... Ba6 {[%clk 0:02:01]} 22. Qe2 {[%clk 0:01:18]} 22... Bxc4
{[%clk 0:02:00.5]} 23. Qxc4 {[%clk 0:01:19.2]} 23... Qe6 {[%clk 0:01:57.7]} 24.
Qxe6 {[%clk 0:01:05.3]} 24... Rxe6 {[%clk 0:01:58.6]} 25. Rab1 {[%clk
0:01:06.8]} 25... Be5 {[%clk 0:01:53.6]} 26. Rd1 {[%clk 0:00:56.3]} 26... Bxc3
{[%clk 0:01:53.6]} 27. Rb7 {[%clk 0:00:57.2]} 27... Rd8 {[%clk 0:01:37.4]} 28.
Bc7 {[%clk 0:00:58]} 28... Rc8 {[%clk 0:01:35.7]} 29. Rxd7 {[%clk 0:00:55.7]}
29... Bb4 {[%clk 0:01:19.5]} 30. Bd6 {[%clk 0:00:46.9]} 30... Rxd6 {[%clk
0:01:03.9]} 31. cxd6 {[%clk 0:00:44.8]} 31... c5 {[%clk 0:01:04.3]} 32. Rxh7+
{[%clk 0:00:45.2]} 32... Kg8 {[%clk 0:01:05]} 33. Rbg7+ {[%clk 0:00:46.2]} 33...
Kf8 {[%clk 0:01:05.7]} 34. d7 {[%clk 0:00:43.7]} 34... Rd8 {[%clk 0:01:03.7]}
35. Rh8+ {[%clk 0:00:36.7]} 35... Kxg7 {[%clk 0:01:04.1]} 36. Rxd8 {[%clk
0:00:38.3]} 36... c4 {[%clk 0:01:02.5]} 37. Re8 {[%clk 0:00:36.4]} 37... c3
{[%clk 0:01:01.2]} 38. d8=Q {[%clk 0:00:36.5]} 38... c2 {[%clk 0:01:00.9]} 39.
Qc7+ {[%clk 0:00:36.9]} 1

[Event "Torneo Nuevo Centro. Jornada 11"]
[Site "Chess.com"]
[Date "2020.08.28"]
[Round "8"]
[White "Fenollar Jorda, Manolo"]
[Black "Carbonell Sancho, Marc"]
[Result "1-0"]
[WhiteElo "2504"]
[BlackElo "1999"]
[TimeControl "180+2"]
[EndTime "11:55:01 PDT"]
[Termination "Victoria de Cucudrulu por abandono"]

1. d4 {[%clk 0:03:01.9]} 1... Nf6 {[%clk 0:03:00.5]} 2. Nf3 {[%clk 0:03:03.1]}
2... g6 {[%clk 0:03:01.8]} 3. Bg5 {[%clk 0:03:02.7]} 3... Bg7 {[%clk 0:03:02.9]}
4. Nbd2 {[%clk 0:03:03.9]} 4... O-O {[%clk 0:03:04.3]} 5. e4 {[%clk 0:03:05]}
5... d6 {[%clk 0:03:06.1]} 6. Bc4 {[%clk 0:03:06.2]} 6... c6 {[%clk 0:03:05.7]}
7. Bb3 {[%clk 0:03:05.7]} 7... Qc7 {[%clk 0:03:00.7]} 8. O-O {[%clk 0:03:02]}
8... Nbd7 {[%clk 0:02:57.3]} 9. Qe2 {[%clk 0:02:56.9]} 9... e5 {[%clk
0:02:56.7]} 10. dxe5 {[%clk 0:02:54.1]} 10... dxe5 {[%clk 0:02:58.6]} 11. Rfd1
{[%clk 0:02:55]} 11... Nc5 {[%clk 0:02:57.9]} 12. Bxf6 {[%clk 0:02:50.9]} 12...
Bxf6 {[%clk 0:02:58.7]} 13. c3 {[%clk 0:02:48.2]} 13... Nxb3 {[%clk 0:02:59.3]}
14. axb3 {[%clk 0:02:50.1]} 14... Be6 {[%clk 0:02:57.7]} 15. Nc4 {[%clk
0:02:44.3]} 15... b5 {[%clk 0:02:48.8]} 16. Na5 {[%clk 0:02:34.6]} 16... Rad8
{[%clk 0:02:44.4]} 17. b4 {[%clk 0:02:33.9]} 17... Bg7 {[%clk 0:02:43.3]} 18.
Qe3 {[%clk 0:02:10.8]} 18... h6 {[%clk 0:02:39.8]} 19. Qc5 {[%clk 0:02:01]}
19... Rxd1+ {[%clk 0:02:26.9]} 20. Rxd1 {[%clk 0:02:01.2]} 20... Rc8 {[%clk
0:02:28.8]} 21. h3 {[%clk 0:01:56.1]} 21... f6 {[%clk 0:02:24.8]} 22. Qd6 {[%clk
0:01:10.7]} 22... Kf7 {[%clk 0:02:08.9]} 23. Qd2 {[%clk 0:00:57.7]} 23... Bf8
{[%clk 0:02:09.3]} 24. Qe3 {[%clk 0:00:53.7]} 24... c5 {[%clk 0:02:08.2]} 25.
Qe1 {[%clk 0:00:50.1]} 25... cxb4 {[%clk 0:02:04.6]} 26. cxb4 {[%clk 0:00:52]}
26... Qc2 {[%clk 0:02:01.8]} 27. Nb7 {[%clk 0:00:43.9]} 27... Qxb2 {[%clk
0:01:59.5]} 28. Kh2 {[%clk 0:00:38.8]} 28... Bxb4 {[%clk 0:01:52.7]} 29. Qe3
{[%clk 0:00:39.4]} 29... g5 {[%clk 0:01:39.5]} 30. Qxa7 {[%clk 0:00:39]} 30...
Kg6 {[%clk 0:01:37]} 31. Nd8 {[%clk 0:00:37.5]} 31... Bc5 {[%clk 0:01:34.3]} 32.
Qb7 {[%clk 0:00:35.2]} 32... Qb3 {[%clk 0:01:16.5]} 33. Rd3 {[%clk 0:00:32.8]}
33... Qxd3 {[%clk 0:01:13.5]} 34. Nxe6 {[%clk 0:00:33.3]} 34... Rg8 {[%clk
0:00:50.1]} 35. Nxc5 {[%clk 0:00:32.3]} 35... Qc4 {[%clk 0:00:52]} 36. Qc6
{[%clk 0:00:30]} 36... b4 {[%clk 0:00:51.8]} 37. Nxe5+ {[%clk 0:00:30.4]} 1

[Event "Torneo Nuevo Centro. Jornada 11"]
[Site "Chess.com"]
[Date "2020.08.28"]
[Round "8"]
[White "Bosch Jordà, Ricard"]
[Black "Birnoveanu, Petru"]
[Result "0-1"]
[WhiteElo "1898"]
[BlackElo "1725"]
[TimeControl "180+2"]
[EndTime "11:55:05 PDT"]
[Termination "Victoria de piculet por jaque mate"]

1. e4 {[%clk 0:03:01.9]} 1... d5 {[%clk 0:03:01.9]} 2. exd5 {[%clk 0:03:01.6]}
2... Qxd5 {[%clk 0:03:01.6]} 3. Nc3 {[%clk 0:03:00.4]} 3... Qe5+ {[%clk
0:02:58.2]} 4. Be2 {[%clk 0:02:44.2]} 4... c6 {[%clk 0:02:56.3]} 5. Nf3 {[%clk
0:02:43.4]} 5... Qd6 {[%clk 0:02:54.1]} 6. d4 {[%clk 0:02:40.2]} 6... Nf6 {[%clk
0:02:53.4]} 7. Bg5 {[%clk 0:02:35]} 7... Bf5 {[%clk 0:02:47.2]} 8. Qd2 {[%clk
0:02:31.7]} 8... Nbd7 {[%clk 0:02:43.8]} 9. O-O-O {[%clk 0:02:31.8]} 9... h6
{[%clk 0:02:41.9]} 10. Bf4 {[%clk 0:02:32.5]} 10... Qb4 {[%clk 0:02:42.1]} 11.
Kb1 {[%clk 0:02:10.6]} 11... e6 {[%clk 0:02:40.8]} 12. Ne5 {[%clk 0:01:59.8]}
12... Be7 {[%clk 0:02:30.9]} 13. Nxd7 {[%clk 0:01:50.9]} 13... Nxd7 {[%clk
0:02:30.2]} 14. g4 {[%clk 0:01:40.1]} 14... Bg6 {[%clk 0:02:28.5]} 15. h4 {[%clk
0:01:38.1]} 15... h5 {[%clk 0:02:20.8]} 16. gxh5 {[%clk 0:01:29.9]} 16... Bxh5
{[%clk 0:02:20.5]} 17. Bxh5 {[%clk 0:01:30.1]} 17... Rxh5 {[%clk 0:02:20.1]} 18.
Bg5 {[%clk 0:01:28.2]} 18... Bf6 {[%clk 0:02:02.5]} 19. Bxf6 {[%clk 0:00:45.9]}
19... gxf6 {[%clk 0:01:47.2]} 20. Qf4 {[%clk 0:00:37.4]} 20... O-O-O {[%clk
0:01:32.9]} 21. Ne4 {[%clk 0:00:30.3]} 21... Nb6 {[%clk 0:01:24.3]} 22. c3
{[%clk 0:00:19.5]} 22... Qe7 {[%clk 0:01:06.4]} 23. Nxf6 {[%clk 0:00:17.3]}
23... Rf5 {[%clk 0:01:04.7]} 24. Qg3 {[%clk 0:00:08]} 24... Qxf6 {[%clk
0:01:04.1]} 25. Rh2 {[%clk 0:00:07.1]} 25... Rf3 {[%clk 0:01:01.5]} 26. Qg2
{[%clk 0:00:05.3]} 26... Qf5+ {[%clk 0:00:59.4]} 27. Ka1 {[%clk 0:00:05]} 27...
Nc4 {[%clk 0:01:00]} 28. h5 {[%clk 0:00:05.2]} 28... Rd3 {[%clk 0:00:50.8]} 29.
Rdh1 {[%clk 0:00:04.9]} 29... Rd2 {[%clk 0:00:47.9]} 30. h6 {[%clk 0:00:03]}
30... Qc2 {[%clk 0:00:44.6]} 31. f4 {[%clk 0:00:03]} 31... Qxb2# {[%clk
0:00:43.6]} 0

[Event "Torneo Nuevo Centro. Jornada 11"]
[Site "Chess.com"]
[Date "2020.08.28"]
[Round "8"]
[White "Perrot, Fabien "]
[Black "Chofre Murcia, Adrián"]
[Result "0-1"]
[WhiteElo "1184"]
[BlackElo "1630"]
[TimeControl "180+2"]
[EndTime "11:55:21 PDT"]
[Termination "Victoria de Kelorian por tiempo"]

1. d4 {[%clk 0:03:01.9]} 1... f5 {[%clk 0:03:00.5]} 2. Nf3 {[%clk 0:03:03]} 2...
e6 {[%clk 0:03:00.7]} 3. c4 {[%clk 0:03:04]} 3... Nf6 {[%clk 0:03:00.6]} 4. Nc3
{[%clk 0:03:04.8]} 4... c6 {[%clk 0:03:00.6]} 5. Bg5 {[%clk 0:03:02.7]} 5... Be7
{[%clk 0:02:59.3]} 6. e3 {[%clk 0:03:03.7]} 6... d5 {[%clk 0:02:58.7]} 7. Ne5
{[%clk 0:02:57]} 7... Nbd7 {[%clk 0:02:56.6]} 8. Bxf6 {[%clk 0:02:46]} 8... Bxf6
{[%clk 0:02:54.6]} 9. Nxd7 {[%clk 0:02:47.4]} 9... Bxd7 {[%clk 0:02:54.6]} 10.
Be2 {[%clk 0:02:28.8]} 10... O-O {[%clk 0:02:54.6]} 11. Qb3 {[%clk 0:02:27.9]}
11... b6 {[%clk 0:02:54.5]} 12. Qd1 {[%clk 0:02:26.7]} 12... Be8 {[%clk
0:02:53.9]} 13. Qd2 {[%clk 0:02:22.5]} 13... Qe7 {[%clk 0:02:49.4]} 14. O-O-O
{[%clk 0:02:23.5]} 14... a5 {[%clk 0:02:42.8]} 15. g4 {[%clk 0:02:24.9]} 15...
Bg5 {[%clk 0:02:40.3]} 16. f4 {[%clk 0:02:23.8]} 16... Bh6 {[%clk 0:02:27]} 17.
g5 {[%clk 0:02:23.2]} 17... Bxg5 {[%clk 0:02:28]} 18. fxg5 {[%clk 0:02:24.2]}
18... Qxg5 {[%clk 0:02:28.8]} 19. Rdg1 {[%clk 0:02:15]} 19... Qf6 {[%clk
0:02:28.7]} 20. h4 {[%clk 0:02:07.4]} 20... h5 {[%clk 0:02:24.1]} 21. Rg5 {[%clk
0:02:04]} 21... g6 {[%clk 0:02:24.7]} 22. Rhg1 {[%clk 0:02:03.4]} 22... Kh7
{[%clk 0:02:20]} 23. Bf3 {[%clk 0:01:43.1]} 23... Bf7 {[%clk 0:02:17.7]} 24. Qg2
{[%clk 0:01:43.8]} 24... Rg8 {[%clk 0:02:17]} 25. Ne2 {[%clk 0:01:26.9]} 25...
a4 {[%clk 0:02:12.4]} 26. a3 {[%clk 0:01:26.3]} 26... b5 {[%clk 0:02:12.7]} 27.
c5 {[%clk 0:01:21.2]} 27... b4 {[%clk 0:02:12.4]} 28. Nf4 {[%clk 0:01:17.3]}
28... bxa3 {[%clk 0:01:51.5]} 29. bxa3 {[%clk 0:01:16.2]} 29... Rab8 {[%clk
0:01:45.6]} 30. Kc2 {[%clk 0:01:10.5]} 30... e5 {[%clk 0:01:29.5]} 31. dxe5
{[%clk 0:00:49.7]} 31... Qxe5 {[%clk 0:01:28.7]} 32. Bxh5 {[%clk 0:00:21.2]}
32... Rb2+ {[%clk 0:01:26.8]} 33. Kd3 {[%clk 0:00:16.6]} 33... Rxg2 {[%clk
0:01:26.4]} 34. Bxg6+ {[%clk 0:00:15.5]} 34... Bxg6 {[%clk 0:01:21]} 35. R5xg2
{[%clk 0:00:14.9]} 35... Qe4+ {[%clk 0:01:15.8]} 36. Ke2 {[%clk 0:00:14.1]}
36... Bf7 {[%clk 0:01:09.1]} 37. h5 {[%clk 0:00:07.9]} 37... Rxg2+ {[%clk
0:01:08.4]} 38. Rxg2 {[%clk 0:00:09.2]} 38... Bxh5+ {[%clk 0:01:07.7]} 39. Nxh5
{[%clk 0:00:07.9]} 39... Qxg2+ {[%clk 0:01:08.4]} 40. Kd3 {[%clk 0:00:08.2]}
40... Qe4+ {[%clk 0:01:05.4]} 41. Ke2 {[%clk 0:00:08.8]} 41... Qg4+ {[%clk
0:01:06.2]} 0

[Event "Torneo Nuevo Centro. Jornada 11"]
[Site "Chess.com"]
[Date "2020.08.28"]
[Round "8"]
[White "Donate Moreno, Silvia"]
[Black "Vidarte Morales, Arturo"]
[Result "1-0"]
[WhiteElo "1897"]
[BlackElo "2199"]
[TimeControl "180+2"]
[EndTime "11:55:27 PDT"]
[Termination "Victoria de monetesSAL por abandono"]

1. e4 {[%clk 0:03:01.9]} 1... c5 {[%clk 0:03:00]} 2. Nf3 {[%clk 0:03:01.3]} 2...
e6 {[%clk 0:03:00]} 3. d4 {[%clk 0:03:01.5]} 3... cxd4 {[%clk 0:03:00.6]} 4.
Nxd4 {[%clk 0:03:03.4]} 4... a6 {[%clk 0:03:01.2]} 5. c4 {[%clk 0:03:03.6]} 5...
Qc7 {[%clk 0:03:00.6]} 6. Nc3 {[%clk 0:03:04]} 6... b6 {[%clk 0:02:59]} 7. Be2
{[%clk 0:03:03.3]} 7... Bb7 {[%clk 0:02:59.4]} 8. Be3 {[%clk 0:03:03.6]} 8...
Nf6 {[%clk 0:02:59.7]} 9. f3 {[%clk 0:03:04.5]} 9... d6 {[%clk 0:03:00.9]} 10.
Qd2 {[%clk 0:03:02.8]} 10... Nbd7 {[%clk 0:03:01.3]} 11. O-O {[%clk 0:03:02.8]}
11... Be7 {[%clk 0:03:00.6]} 12. a4 {[%clk 0:03:01.8]} 12... O-O {[%clk
0:02:59.8]} 13. a5 {[%clk 0:03:02.5]} 13... d5 {[%clk 0:02:46.9]} 14. axb6
{[%clk 0:02:27]} 14... Nxb6 {[%clk 0:02:44.4]} 15. cxd5 {[%clk 0:02:27.3]} 15...
exd5 {[%clk 0:02:42.8]} 16. Nf5 {[%clk 0:02:00.7]} 16... Bc5 {[%clk 0:02:30.1]}
17. e5 {[%clk 0:01:51.3]} 17... Nfd7 {[%clk 0:02:23.1]} 18. f4 {[%clk
0:01:47.3]} 18... Nc4 {[%clk 0:02:07.4]} 19. Bxc4 {[%clk 0:00:51.1]} 19... dxc4
{[%clk 0:02:06.1]} 20. Rfd1 {[%clk 0:00:47.2]} 20... Rfd8 {[%clk 0:01:58.9]} 21.
Qf2 {[%clk 0:00:37]} 21... Bxe3 {[%clk 0:01:55.7]} 22. Qxe3 {[%clk 0:00:35.7]}
22... Nc5 {[%clk 0:01:53.6]} 23. Nd6 {[%clk 0:00:29.3]} 23... Nb3 {[%clk
0:01:43.5]} 24. Ra4 {[%clk 0:00:24.4]} 24... Qe7 {[%clk 0:01:06.5]} 25. Rxc4
{[%clk 0:00:22.9]} 25... Na5 {[%clk 0:00:58]} 26. Rcd4 {[%clk 0:00:21.5]} 26...
Rab8 {[%clk 0:00:53.5]} 27. b4 {[%clk 0:00:19.4]} 27... Nc6 {[%clk 0:00:53.9]}
28. Rc4 {[%clk 0:00:20.3]} 28... Qe6 {[%clk 0:00:48.4]} 29. Nd5 {[%clk
0:00:19.2]} 29... Ne7 {[%clk 0:00:46.7]} 30. Nxe7+ {[%clk 0:00:19.4]} 30... Qxe7
{[%clk 0:00:46.5]} 31. Rcd4 {[%clk 0:00:20.3]} 31... Qe6 {[%clk 0:00:46.1]} 32.
Nxb7 {[%clk 0:00:21.1]} 32... Rxd4 {[%clk 0:00:45]} 33. Qxd4 {[%clk 0:00:23]}
33... g5 {[%clk 0:00:39.6]} 34. Nc5 {[%clk 0:00:23]} 34... Qg4 {[%clk
0:00:38.1]} 35. Nd7 {[%clk 0:00:21.8]} 35... Rxb4 {[%clk 0:00:31.8]} 36. Nf6+
{[%clk 0:00:20.9]} 36... Kg7 {[%clk 0:00:31.4]} 37. Nxg4 {[%clk 0:00:22.8]}
37... Rxd4 {[%clk 0:00:31.8]} 38. Rxd4 {[%clk 0:00:24.7]} 38... gxf4 {[%clk
0:00:32.2]} 39. Rxf4 {[%clk 0:00:26.6]} 39... a5 {[%clk 0:00:32.7]} 40. Ra4
{[%clk 0:00:27.5]} 1

[Event "Torneo Nuevo Centro. Jornada 11"]
[Site "Chess.com"]
[Date "2020.08.28"]
[Round "8"]
[White "Aymerich Rosell, Pablo"]
[Black "Sos Andreu, Eric"]
[Result "1-0"]
[WhiteElo "2020"]
[BlackElo "2487"]
[TimeControl "180+2"]
[EndTime "11:55:31 PDT"]
[Termination "Victoria de jasikevic por abandono"]

1. e4 {[%clk 0:03:01.9]} 1... c6 {[%clk 0:03:01]} 2. d4 {[%clk 0:03:02.5]} 2...
d5 {[%clk 0:03:02.5]} 3. e5 {[%clk 0:03:03.8]} 3... Bf5 {[%clk 0:03:03.4]} 4.
Nf3 {[%clk 0:03:04.9]} 4... e6 {[%clk 0:03:04.7]} 5. Be2 {[%clk 0:03:06.2]} 5...
c5 {[%clk 0:03:06.1]} 6. Be3 {[%clk 0:03:06.5]} 6... Nc6 {[%clk 0:03:05.8]} 7.
dxc5 {[%clk 0:03:04]} 7... Nge7 {[%clk 0:03:02]} 8. c3 {[%clk 0:03:01.2]} 8...
Ng6 {[%clk 0:02:54]} 9. Bd4 {[%clk 0:02:57.5]} 9... Be7 {[%clk 0:02:49]} 10. O-O
{[%clk 0:02:55.1]} 10... O-O {[%clk 0:02:49.8]} 11. Nbd2 {[%clk 0:02:50.3]}
11... Nxd4 {[%clk 0:02:50.6]} 12. cxd4 {[%clk 0:02:50.5]} 12... b6 {[%clk
0:02:52]} 13. b4 {[%clk 0:02:49.3]} 13... bxc5 {[%clk 0:02:49]} 14. bxc5 {[%clk
0:02:46.5]} 14... Rb8 {[%clk 0:02:44.7]} 15. Nb3 {[%clk 0:02:44.9]} 15... a5
{[%clk 0:02:41.2]} 16. a4 {[%clk 0:02:35]} 16... Rb4 {[%clk 0:02:40.8]} 17. Bd3
{[%clk 0:02:15]} 17... Bxd3 {[%clk 0:02:39.6]} 18. Qxd3 {[%clk 0:02:15.4]} 18...
Qc7 {[%clk 0:02:40.5]} 19. g3 {[%clk 0:02:01.4]} 19... Rfb8 {[%clk 0:02:41.3]}
20. Rfb1 {[%clk 0:02:00]} 20... h6 {[%clk 0:02:40.5]} 21. Nbd2 {[%clk
0:01:56.3]} 21... Qc6 {[%clk 0:02:39.5]} 22. Rxb4 {[%clk 0:01:54.2]} 22... Rxb4
{[%clk 0:02:41.4]} 23. Rb1 {[%clk 0:01:40.8]} 23... Qxa4 {[%clk 0:02:40.9]} 24.
Rxb4 {[%clk 0:01:39.6]} 24... Qxb4 {[%clk 0:02:40.2]} 25. h4 {[%clk 0:01:32.7]}
25... a4 {[%clk 0:02:40]} 26. Qa6 {[%clk 0:01:27.4]} 26... Bf8 {[%clk
0:02:29.4]} 27. c6 {[%clk 0:01:26.8]} 27... Ne7 {[%clk 0:02:29.8]} 28. c7 {[%clk
0:01:19.4]} 28... Qc3 {[%clk 0:02:30.7]} 29. Qxa4 {[%clk 0:01:16.6]} 29... Qxc7
{[%clk 0:02:31.6]} 30. Qe8 {[%clk 0:01:09.7]} 30... Nf5 {[%clk 0:02:28.9]} 31.
Kg2 {[%clk 0:01:05.9]} 31... Qb6 {[%clk 0:02:26.5]} 32. Qa4 {[%clk 0:00:59.3]}
32... Qb4 {[%clk 0:02:26]} 33. Qa7 {[%clk 0:00:41.3]} 33... Qb5 {[%clk
0:02:11.8]} 34. g4 {[%clk 0:00:39]} 34... Ne7 {[%clk 0:02:12.1]} 35. g5 {[%clk
0:00:27.8]} 35... Qe2 {[%clk 0:02:11.4]} 36. gxh6 {[%clk 0:00:26.1]} 36... gxh6
{[%clk 0:02:13.3]} 37. Qa3 {[%clk 0:00:22.2]} 37... Ng6 {[%clk 0:02:12.9]} 38.
Qe3 {[%clk 0:00:19.9]} 38... Qa6 {[%clk 0:02:09.8]} 39. h5 {[%clk 0:00:20.1]}
39... Ne7 {[%clk 0:02:10.9]} 40. Qf4 {[%clk 0:00:19.4]} 40... Nf5 {[%clk
0:02:08.9]} 41. Nh4 {[%clk 0:00:20.2]} 41... Nxh4+ {[%clk 0:02:03.2]} 42. Qxh4
{[%clk 0:00:20.9]} 42... Qe2 {[%clk 0:02:04.2]} 43. Nf3 {[%clk 0:00:20.9]} 43...
Bg7 {[%clk 0:01:58]} 44. Qd8+ {[%clk 0:00:20.5]} 44... Bf8 {[%clk 0:01:57.7]}
45. Qf6 {[%clk 0:00:21]} 45... Qe4 {[%clk 0:01:56.6]} 46. Qh4 {[%clk 0:00:19.8]}
46... Qf5 {[%clk 0:01:53.4]} 47. Qg3+ {[%clk 0:00:19.7]} 47... Kh7 {[%clk
0:01:52.9]} 48. Qh4 {[%clk 0:00:18.7]} 48... Bg7 {[%clk 0:01:50.5]} 49. Qh3
{[%clk 0:00:18.8]} 49... Qe4 {[%clk 0:01:49.6]} 50. Qg3 {[%clk 0:00:17]} 50...
Bf8 {[%clk 0:01:47.6]} 51. Qh4 {[%clk 0:00:16.3]} 51... Qf5 {[%clk 0:01:43.9]}
52. Qh3 {[%clk 0:00:15.6]} 52... Qd3 {[%clk 0:01:44.2]} 53. Ng5+ {[%clk
0:00:14.9]} 53... hxg5 {[%clk 0:01:45]} 54. Qxd3+ {[%clk 0:00:15.9]} 54... Kh6
{[%clk 0:01:46.9]} 55. Qf3 {[%clk 0:00:16.4]} 1